Cogmind - Beta 14 @@@ ROGUE MODE // 2024.11.25 @ 09:12:02 Player: Verbt Result: Destroyed by G-34 Mercenary with Small Laser Performance ------------- Evolutions (1) 500 Regions Visited (2) 400 Robots Destroyed (22) 110 Value Destroyed (427) 427 Prototype IDs (0) 0 Alien Tech Used (0) 0 Bonus (0) 0 TOTAL SCORE: 1437 Bonus ------- None Cogmind --------- Core Integrity 0/400 Matter 151/300 Energy 85/100 System Corruption 0% Temperature Cool (49) Movement Walking (260) Ox2 Location -9/Materials Parts ------- > --- POWER (1) -------- (None) > --- PROPULSION (2) --- Aluminum Leg > --- UTILITY (4) ------ Small Storage Unit Large Storage Unit Signal Interpreter > --- WEAPON (2) ------- Medium Laser Medium Laser > --- INVENTORY (15) --- Light Ion Engine Nuclear Core Trap Scanner Trap Scanner Sensor Array Improved Terrain Scanner Seismic Detector EM Pulse Gun Peak State ------------ > --- POWER ------------ Nuclear Core > --- PROPULSION ------- Light Treads Light Treads > --- UTILITY ---------- Small Storage Unit Large Storage Unit Signal Interpreter Improved Terrain Scanner > --- WEAPON ----------- Heavy Assault Rifle Grenade Launcher > --- INVENTORY -------- Light Ion Engine Nuclear Core Aluminum Leg Aluminum Leg Trap Scanner Trap Scanner Sensor Array Seismic Detector Light Armor Plating EM Pulse Gun Medium Laser Medium Laser Particle Cannon Mining Laser [Rating: 16] Favorites ----------- Power Light Ion Engine Engine Light Ion Engine Power Core Nuclear Core Propulsion Light Treads Treads Light Treads Leg Aluminum Leg Utility Small Storage Unit Device Sensor Array Storage Small Storage Unit Processor Signal Interpreter Protection Propulsion Shielding Weapon Medium Laser Energy Gun Medium Laser Energy Cannon Particle Cannon Ballistic Gun Heavy Assault Rifle Launcher Grenade Launcher Special Weapon Mining Laser Build | -11 -10 -9 ------- Run | Yrd Mat Mat Slots Evolved 2 | . . 2 Power . | . . . Propulsion . | . . . Utility 2 | . . 2 Weapon . | . . . Parts Attached 38 | 7 6 25 Power 3 | 1 . 2 Engine 1 | 1 . . Core 2 | . . 2 Reactor . | . . . Propulsion 4 | 2 . 2 Treads 2 | 2 . . Leg 2 | . . 2 Wheel . | . . . Hover . | . . . Flight . | . . . Utility 15 | 1 6 8 Device 3 | . 1 2 Storage 7 | 1 5 1 Processor 1 | . . 1 Hackware . | . . . Protection 4 | . . 4 Artifact . | . . . Weapon 16 | 3 . 13 Energy Gun 6 | 3 . 3 Energy Cannon 2 | . . 2 Ballistic Gun 4 | . . 4 Ballistic Cannon . | . . . Launcher 3 | . . 3 Special Weapon 1 | . . 1 Impact Weapon . | . . . Slashing Weapon . | . . . Piercing Weapon . | . . . Special Melee Weapon . | . . . Unidentified Prototypes . | . . . Parts Lost 9 | . . 9 Power 1 | . . 1 Propulsion 3 | . . 3 Utility 2 | . . 2 Weapon 3 | . . 3 Highest Loss Streak 4 | . . 4 To Critical Strikes . | . . . Average Slot Usage (%) 95 | . 99 90 Engine 9 | . 14 4 Core 2 | . . 5 Treads 22 | . 28 16 Device 11 | . 13 9 Storage 17 | . 14 22 Processor 3 | . . 7 Protection 1 | . . 2 Energy Gun 18 | . 28 7 Energy Cannon 1 | . . 2 Ballistic Gun 2 | . . 6 Launcher 1 | . . 3 Peak Build Rating 16 | 6 7 16 Average Rating 8 | 4 6 11 On Entrance 4 | . 6 7 Naked Turns . | . . . Heaviest Build 48 | 12 48 41 Greatest Support 40 | 40 40 40 Greatest Overweight (x) 3 | . 1 3 Average Overweight (x) . | . . . Largest Inventory Capacity 20 | 8 20 15 Average Capacity 12 | 7 10 15 Most Carried 15 | 6 8 15 Average Carried 9 | 2 7 11 Final Capacity 15 | 8 15 15 Final Carried 8 | 6 8 8 Class Distribution -------------------- 100% | Mutant Dominant Class ---------------- Mutant | -10/Materials Mutant | -9/Materials Resources | -11 -10 -9 ----------- Run | Yrd Mat Mat Matter Collected 504 | 224 106 174 Remotely . | . . . Salvage Created 514 | . 236 278 Parts 29 | . 11 18 Haulers Intercepted . | . . . Recyclers Shooed 1 | . . 1 Parts Field Recycled . | . . . Retrieved Matter . | . . . Parts Self-Destructed . | . . . Prevented . | . . . Kills | -11 -10 -9 ------- Run | Yrd Mat Mat Combat Hostiles Destroyed 17 | . 2 15 Guns 7 | . 1 6 Cannons 1 | . . 1 AOE 9 | . 1 8 Classes Destroyed 7 | . 4 3 Worker 1 | . 1 . Recycler 1 | . 1 . Watcher 3 | . 2 1 Swarmer 10 | . . 10 Grunt 5 | . 2 3 Duelist 1 | . . 1 Sentry 1 | . . 1 Best Kill Streak 7 | . 2 7 Combat Bots Only 6 | . 1 6 Max Kills in Single Turn 4 | . 1 4 Gunslinging . | . . . Exploded 4 | . 1 4 Melee . | . . . Uniques/NPCs Destroyed . | . . . Combat | -11 -10 -9 -------- Run | Yrd Mat Mat Hostile Shots Fired 139 | . 1 138 Missed 45 | . 1 44 Damage Taken 1632 | . . 1632 Core 402 | . . 402 Absorbed by Shields . | . . . Redirected to Shielding 59 | . . 59 Core Remaining (%) 100 | 100 100 . Volleys Fired 60 | . 14 46 Largest 2 | . 2 2 Hottest 123 | . 90 123 Shots Fired 95 | . 28 67 Gun 79 | . 28 51 Cannon 9 | . . 9 Launcher 6 | . . 6 Special 1 | . . 1 Kinetic 27 | . . 27 Thermal 46 | . 14 32 Explosive 6 | . . 6 Electromagnetic 16 | . 14 2 Robot Hit Streak 7 | . 6 7 Robot Miss Streak 6 | . 3 6 Penetration Max . | . . . Secondary Targets . | . . . Shots Hit Robots 52 | . 15 37 Core Hits 27 | . 8 19 Critical Kills . | . . . Critical Parts Destroyed . | . . . Critical Strikes 3 | . 1 2 Burn 3 | . 1 2 Melee Attacks . | . . . Impact . | . . . Slashing . | . . . Piercing . | . . . Sneak Attacks . | . . . Combat Hostiles . | . . . Follow-up Attacks . | . . . Damage Inflicted 1279 | . 264 1015 Guns 610 | . 226 384 Cannons 125 | . . 125 Explosions 517 | . 38 479 Melee . | . . . Ramming 3 | . . 3 Kinetic 208 | . . 208 Thermal 398 | . 100 298 Explosive 479 | . . 479 Electromagnetic 191 | . 164 27 Impact . | . . . Slashing . | . . . Piercing . | . . . Highest Corruption . | . . . Average Corruption . | . . . Corruption Purged . | . . . Corruption Blocked . | . . . Overload Shots . | . . . Overflow Damage 26 | . . 26 Projectiles . | . . . Explosions 26 | . . 26 Melee . | . . . Knockbacks . | . . . Impact . | . . . Kinetic . | . . . Secondary . | . . . Self-Inflicted Damage 146 | . . 146 Shots 2 | . . 2 Rammed 5 | . . 5 Targets Rammed 5 | . . 5 Kicked . | . . . Crushed . | . . . Highest Temperature 90 | . 90 69 Average Temperature 26 | . 33 22 Received Heat Transfer 231 | . . 231 Siege Activations . | . . . Robots Corrupted . | . . . Combat Hostiles . | . . . Parts Fried 1 | . 1 . Impact Corruptions . | . . . Robots Melted . | . . . Combat Hostiles . | . . . Parts Melted 1 | . . 1 Heat Transferred 1123 | . 259 864 Parts Sabotaged . | . . . Parts Stolen . | . . . Parts Stripped . | . . . Power Chain Reactions 1 | . 1 . Alert | -11 -10 -9 ------- Run | Yrd Mat Mat Peak Influence 270 | . 124 270 Initial . | . . . Average 64 | . 14 137 Maximum Alert Level 1 | . . 1 Low Security (%) 86 | 100 100 67 Level 1 13 | . . 32 Level 2 . | . . . Level 3 . | . . . Level 4 . | . . . Level 5 . | . . . High Security . | . . . Max Security . | . . . Squads Dispatched 7 | . 3 4 Investigation 2 | . 1 1 Extermination . | . . . Reinforcement 5 | . 2 3 Assault . | . . . Garrison . | . . . Intercept . | . . . Searches Triggered . | . . . Construction Impeded 2 | . . 2 Haulers Reinforced . | . . . Active Scanning Responses . | . . . Cargo Convoy Interrupts . | . . . Stealth | -11 -10 -9 --------- Run | Yrd Mat Mat Distress Signals 4 | . 3 1 Communications Jammed . | . . . Distress Signals . | . . . Times Spotted 34 | . 6 28 Peak Tracking Total 8 | . 2 8 Tactical Retreats 4 | . 2 2 Traps | -11 -10 -9 ------- Run | Yrd Mat Mat Traps Triggered 1 | . 1 . Indirectly . | . . . Trap Hack Attempts . | . . . Triggered . | . . . Disarmed . | . . . Reprogrammed 6 | . . 6 Reused 4 | . . 4 Traps Extracted . | . . . Installed . | . . . Triggered 4 | . . 4 Machines | -11 -10 -9 ---------- Run | Yrd Mat Mat Machines Disabled 1 | . . 1 Max in Single Turn 1 | . . 1 Machines Repaired . | . . . Machines Dismantled . | . . . Machines Sabotaged . | . . . Overloaded Fab Kills . | . . . Hacking | -11 -10 -9 --------- Run | Yrd Mat Mat Machines Accessed 4 | . 3 1 Terminals 4 | . 3 1 Fabricators . | . . . Repair Stations . | . . . Recycling Units . | . . . Scanalyzers . | . . . Garrison Access . | . . . Total Hacks 11 | . 8 3 Successful 4 | . 2 2 Failed 7 | . 6 1 Catastrophic 1 | . 1 . Database Lockouts . | . . . Manual . | . . . Terminals 11 | . 8 3 Fabricators . | . . . Repair Stations . | . . . Recycling Units . | . . . Scanalyzers . | . . . Garrison Access . | . . . Terminal Hacks 4 | . 2 2 Emergency Access Points 1 | . 1 . Reprogram Traps 1 | . . 1 Investigation Status 1 | . . 1 Recall Investigation 1 | . 1 . Fabricator Hacks . | . . . Repair Station Hacks . | . . . Recycling Unit Hacks . | . . . Scanalyzer . | . . . Garrison Access Hacks . | . . . Unauthorized Hacks . | . . . Terminals . | . . . Fabricators . | . . . Repair Stations . | . . . Recycling Units . | . . . Scanalyzers . | . . . Garrison Access . | . . . Data Cores Recovered . | . . . Used . | . . . Hacking Detections 4 | . 3 1 Full Trace Events 1 | . . 1 Feedback Events . | . . . Feedback Blocked . | . . . Robot Schematics Acquired . | . . . Robots Built . | . . . Authchips . | . . . Time . | . . . Total Robot Build Rating . | . . . Part Schematics Acquired . | . . . Parts Built . | . . . Authchips . | . . . Time . | . . . Total Part Build Rating . | . . . Parts Repaired . | . . . Time . | . . . Parts Recycled . | . . . Recycled Matter . | . . . Retrieved Matter . | . . . Retrieved Components . | . . . Parts Scanalyzed . | . . . Part Schematics Acquired . | . . . Parts Damaged . | . . . Bothacking | -11 -10 -9 ------------ Run | Yrd Mat Mat Used RIF Installer . | . . . Robots Hacked . | . . . Non-combat . | . . . Combat . | . . . Robot Hacks Applied . | . . . Relay Couplers Released . | . . . Fabnet Peak Effective % . | . . . Robots Rewired . | . . . Allies Hacked . | . . . Hacks Repelled . | . . . Allies | -11 -10 -9 -------- Run | Yrd Mat Mat Total Allies . | . . . Largest Group . | . . . Highest-Rated Group . | . . . Highest-Rated Ally . | . . . Total Orders . | . . . Ally Attacks . | . . . Total Damage . | . . . Kills . | . . . Allies Corrupted . | . . . Allies Melted . | . . . Intel | -11 -10 -9 ------- Run | Yrd Mat Mat Robot Analysis Total . | . . . Derelict Logs Recovered . | . . . Drone Launches . | . . . Drone Recoveries . | . . . Exploration | -11 -10 -9 ------------- Run | Yrd Mat Mat Turns Passed 2287 | 127 1215 945 Spaces Moved 1212 | 71 712 429 Core 2 | 2 . . Treads 1174 | 69 712 393 Legs 36 | . . 36 Wheels . | . . . Hover . | . . . Flight . | . . . Fastest Speed 50 | 50 160 160 Average Speed 167 | 156 162 178 Slowest Speed 330 | 160 240 330 Overloaded Moves . | . . . Propulsion Burnouts . | . . . Robots Hopped . | . . . Cave-ins Triggered . | . . . Exploration Rate (%) 34 | 5 67 32 Regions Visited 2 Branch Regions . Pre-discovered Areas . | . . . Known Exits Taken . | . . . Unknown Exits Taken 2 | 1 1 . Scrap Searched . | . . . Spaces Dug . | . . . Terrain Destroyed 69 | . 3 66 Melee . | . . . Projectile . | . . . AOE 69 | . 3 66 Terrain Rammed . | . . . Walls Destroyed . | . . . Machines Disabled . | . . . Actions | -11 -10 -9 --------- Run | Yrd Mat Mat Total 1343 | 83 743 517 Wait . | . . . Move 1210 | 70 711 429 Hop . | . . . Pick Up 24 | 6 7 11 Fast Attach 10 | 6 1 3 Attach 10 | . . 10 Detach . | . . . Swap 18 | 1 5 12 Drop 6 | . 5 1 Fire 60 | . 14 46 Melee . | . . . Ram 2 | . . 2 Kick . | . . . Crush 3 | . . 3 Escape Stasis . | . . . Rewire . | . . . Trap . | . . . Miscellaneous . | . . . Route ------- -11/Scrapyard -10/Materials (discovered 2 exits: *Mat / [*Min]) -9/Materials (discovered 1 exit: [*Mat]) History --------- Turn | Location | Event 96 | -11/Scrapyard | Discovered new exit (range 16) 128 | -11/Scrapyard | Entered Materials 311 | -10/Materials | Build established: Mutant 682 | -10/Materials | Discovered new exit (range 7) 957 | -10/Materials | Discovered new exit (range 16) 1343 | -10/Materials | Entered another Materials area 1343 | -9/Materials | Evolved 2 slots: Utility x2 1582 | -9/Materials | Discovered new exit (range 8) 2159 | -9/Materials | Core integrity fell below 50% 2181 | -9/Materials | Core integrity fell below 20% 2192 | -9/Materials | Lost 4 parts (1n1u2w) 2288 | -9/Materials | Destroyed by G-34 Mercenary with Small Laser Last Messages --------------- T-07 Excavator is excavating. U-05 Engineer lays Concrete. U-05 Engineer builds a Wall. K-01 Serf collects debris. Nuclear Core destroyed. U-05 Engineer lays Concrete. T-07 Excavator is excavating. G-34 Mercenary destroyed. U-05 Engineer lays Concrete. U-05 Engineer builds a Wall. U-05 Engineer lays Concrete. K-01 Serf collects debris. Acquired 26 matter. U-05 Engineer builds a Wall. Acquired 40 matter. R-06 Scavenger collects Corrupted Melee Analysis Suite. R-06 Scavenger suffers critical hit (Burn). U-05 Engineer builds a Door. K-01 Serf collects debris. Map ----- +----------------------------------------------------+ | ??????????????????????????????????????? | | ??????????????????????????????????????? | | ??????????????????????????????????????? | | ??????????????????????????????????????? | | ??????????????????????????????????????? | | ??????????????????????????????????????? | | ??????????????????????????????????????? | | ?????????????????????########?????????? | | ?????????????????????# #?????????? | | ?????????????????????# """ #?????????? | | ?????????????????????# """ ########### | | ?????????????????????# """ # # | | ?????????????????????# # # | | ?????????????????????# # # | | ?????????????????????###+#### # | | ?????????????########### + # | | ?????????????# ] # ## # | | ?????????????# # ## # | | ?????????????# """ """ # ## # | | ?????????????# """ """ + ########+### | | ?????????????# """ """ # | | ?????????????# # | | ?????????????# # | | ?????????????# # ########+## | | ?? ??????############### #?# [ # | | ?? ""????# @ k #?# ]# | | ?? """ ??# % #?# # | | ? """ # % a #?# [# | | # + gg##########+####?# ## | | ? """ # # # #???# """ #? | | ?? """ # # "T" #? ???# """ #? | | ?? """???# # # ??# """ #? | | ?? ??????# # """ # ??# #? | | ?????????# + """ # ?#########? | | ?????????# # """ # #?????????? | | ?????????# # # #?????????? | | ?????????# # # #?????????? | | ??######## ######## #?????????? | | ??# # ######?#########?????????? | | ??# /// # **#????????????????????? | | ??# /// # #??????#?????????????? | | ??# /// # * #????????????????????? | | ??# + !!#?????#??????????????? | | ??# # ==#????????????????????? | | ########## ==#????????????????????? | | # ## ?# #####???#????????????????? | | # ?# ##???????????????????????? | | # # #??????????? ????????????? | | ?# # #????????#???????????????? | | ??# #????????????????????????? | +----------------------------------------------------+ Best States ------------- Heat Dissipation 28 Energy Generation 14 Energy Capacity 240 Matter Stores 300 Matter Capacity 300 Sight Range 16 Robot Scan Range 14 Terrain Scan Range 16 Terrain Scan Density 10 Armor Coverage 225 Propulsion Shielding 33 Evasion (%) 40 Recoil Reduction 2 Item Schematics ----------------- None Robot Schematics ------------------ None Fabricated ------------ Nothing Alien Tech Used ----------------- None Achievements -------------- None Challenges ------------ None Game ------ Seed TargetAnalysisBattery Manual? 0 Play Time 00:27:46 Cumulative 3.5 hours Start 2024.11.25 @ 08:43:58 End 2024.11.25 @ 09:12:02 Sessions 1 Manual Loads 0 Difficulty Rogue Special Mode None Game No. 6 Rogue 6 Adventurer 0 Explorer 0 Win Type - Total 0 Types 0/0/0/0/0/0/0/0/0 Lore% 4 Gallery% 6 Achievement% 7 Wizard Run 0 Options --------- Layout 1 ASCII 0 Keyboard 1 Movement Vi Keybinds 0 Fullscreen 1 Font 24/Smallcaps Map View 50x35 Zoom Use 0% Tactical HUD 0 Map Filters NONE Filters NONE Steam 1 RUN: 764b0f7d-7dbf-4ca1-9408-eedfd8ceb662